{"text_format":"3","workbook":"xlsx","n_sheets":6,"sheets":["Panel","Ventas","Ingresos","Gastos","Impuestos","Categorías"],"not_rendered":{"images":1,"defined_names":34},"read":"whole","date_system":"1900"}

{"sheet":"Panel","index":0,"n_rows":20,"n_cols":8,"rows_kept":20,"merged":[[0,2,0,4],[0,6,3,7],[5,1,5,7]]}
[null,"Balance de pérdidas y ganancias","Para el fin de [mes o año] [mes-día-año]"]
[null,"Nombre de la compañía","Expresado en millares"]
[null,"Margen bruto actual [L/J]",{"$f":"IFERROR(IF(Total_de_ganacia_bruta=0,\"-\",Total_de_ganacia_bruta/Total_de_ingresos_por_ventas),\"-\")","v":"-"}]
[null,"Rentabilidad de ventas actual [T/J]",{"$f":"IFERROR(IF(Beneficios_netos=0,\"-\",Beneficios_netos/Total_de_ingresos_por_ventas),\"-\")","v":"-"}]
[]
[null,"No modifiques las categorías de esta hoja de cálculo porque podrían producirse errores de fórmulas. Usa la hoja de cálculo Categoría para agregar categorías y actualiza las hojas de cálculo correspondientes con entradas. Esta hoja de cálculo se actualizará automáticamente."]
[null,"Resumen","Total del período anterior","Presupuesto total","Total actual\nPeríodo","Total del período actual como porcentaje de ventas","Total de porcentaje de cambio desde el período anterior","Total de porcentaje de cambio desde presupuesto"]
[null,"Total de ingresos por ventas [J]",{"$f":"SUMIFS(IngresosPorVentas[Período anterior],IngresosPorVentas[Tipo de ingreso],\"Ingresos por ventas\")","v":0},{"$f":"SUMIFS(IngresosPorVentas[Presupuesto],IngresosPorVentas[Tipo de ingreso],\"Ingresos por ventas\")","v":0},{"$f":"SUMIFS(IngresosPorVentas[Período actual],IngresosPorVentas[Tipo de ingreso],\"Ingresos por ventas\")","v":0},{"$f":"SUMIFS(IngresosPorVentas[Período actual como porcentaje de ventas],IngresosPorVentas[Tipo de ingreso],\"Ingresos por ventas\")","v":{"v":0,"d":"0.00%"}},{"$f":"SUMIFS(IngresosPorVentas[Porcentaje de cambio desde el período anterior],IngresosPorVentas[Tipo de ingreso],\"Ingresos por ventas\")","v":{"v":0,"d":"0.00%"}},{"$f":"SUMIFS(IngresosPorVentas[Porcentaje de cambio desde presupuesto],IngresosPorVentas[Tipo de ingreso],\"Ingresos por ventas\")","v":{"v":0,"d":"0.00%"}}]
[null,"Costo de ventas total [K]",{"$f":"SUMIFS(IngresosPorVentas[Período anterior],IngresosPorVentas[Tipo de ingreso],\"Costo de ventas\")","v":0},{"$f":"SUMIFS(IngresosPorVentas[Presupuesto],IngresosPorVentas[Tipo de ingreso],\"Costo de ventas\")","v":0},{"$f":"SUMIFS(IngresosPorVentas[Período actual],IngresosPorVentas[Tipo de ingreso],\"Costo de ventas\")","v":0},{"$f":"SUMIFS(IngresosPorVentas[Período actual como porcentaje de ventas],IngresosPorVentas[Tipo de ingreso],\"Ingresos por ventas\")","v":{"v":0,"d":"0.00%"}},{"$f":"SUMIFS(IngresosPorVentas[Porcentaje de cambio desde el período anterior],IngresosPorVentas[Tipo de ingreso],\"Ingresos por ventas\")","v":{"v":0,"d":"0.00%"}},{"$f":"SUMIFS(IngresosPorVentas[Porcentaje de cambio desde presupuesto],IngresosPorVentas[Tipo de ingreso],\"Ingresos por ventas\")","v":{"v":0,"d":"0.00%"}}]
[null,"Total de ventas y gastos de marketing [M]",{"$f":"SUMIFS(OperatingExpenses[Período anterior],OperatingExpenses[Tipo de gasto],\"Ventas y marketing\")","v":0},{"$f":"SUMIFS(OperatingExpenses[Presupuesto],OperatingExpenses[Tipo de gasto],\"Ventas y marketing\")","v":0},{"$f":"SUMIFS(OperatingExpenses[Período actual],OperatingExpenses[Tipo de gasto],\"Ventas y marketing\")","v":0},{"$f":"SUMIFS(IngresosPorVentas[Período actual como porcentaje de ventas],IngresosPorVentas[Tipo de ingreso],\"Ingresos por ventas\")","v":{"v":0,"d":"0.00%"}},{"$f":"SUMIFS(IngresosPorVentas[Porcentaje de cambio desde el período anterior],IngresosPorVentas[Tipo de ingreso],\"Ingresos por ventas\")","v":{"v":0,"d":"0.00%"}},{"$f":"SUMIFS(IngresosPorVentas[Porcentaje de cambio desde presupuesto],IngresosPorVentas[Tipo de ingreso],\"Ingresos por ventas\")","v":{"v":0,"d":"0.00%"}}]
[null,"Total de gastos en investigación y desarrollo [N]",{"$f":"SUMIFS(OperatingExpenses[Período anterior],OperatingExpenses[Tipo de gasto],\"Investigación y desarrollo\")","v":0},{"$f":"SUMIFS(OperatingExpenses[Presupuesto],OperatingExpenses[Tipo de gasto],\"Investigación y desarrollo\")","v":0},{"$f":"SUMIFS(OperatingExpenses[Período actual],OperatingExpenses[Tipo de gasto],\"Investigación y desarrollo\")","v":0},{"$f":"SUMIFS(IngresosPorVentas[Período actual como porcentaje de ventas],IngresosPorVentas[Tipo de ingreso],\"Ingresos por ventas\")","v":{"v":0,"d":"0.00%"}},{"$f":"SUMIFS(IngresosPorVentas[Porcentaje de cambio desde el período anterior],IngresosPorVentas[Tipo de ingreso],\"Ingresos por ventas\")","v":{"v":0,"d":"0.00%"}},{"$f":"SUMIFS(IngresosPorVentas[Porcentaje de cambio desde presupuesto],IngresosPorVentas[Tipo de ingreso],\"Ingresos por ventas\")","v":{"v":0,"d":"0.00%"}}]
[null,"Total de gastos generales y administrativos [O]",{"$f":"SUMIFS(OperatingExpenses[Período anterior],OperatingExpenses[Tipo de gasto],\"General and Adminstrative\")","v":0},{"$f":"SUMIFS(OperatingExpenses[Presupuesto],OperatingExpenses[Tipo de gasto],\"General and Adminstrative\")","v":0},{"$f":"SUMIFS(OperatingExpenses[Período actual],OperatingExpenses[Tipo de gasto],\"General and Adminstrative\")","v":0},{"$f":"SUMIFS(IngresosPorVentas[Período actual como porcentaje de ventas],IngresosPorVentas[Tipo de ingreso],\"Ingresos por ventas\")","v":{"v":0,"d":"0.00%"}},{"$f":"SUMIFS(IngresosPorVentas[Porcentaje de cambio desde el período anterior],IngresosPorVentas[Tipo de ingreso],\"Ingresos por ventas\")","v":{"v":0,"d":"0.00%"}},{"$f":"SUMIFS(IngresosPorVentas[Porcentaje de cambio desde presupuesto],IngresosPorVentas[Tipo de ingreso],\"Ingresos por ventas\")","v":{"v":0,"d":"0.00%"}}]
[null,"Total de otros gastos operativos [P]",{"$f":"OperatingExpenses[[#Totals],[Período anterior]]-SUM(C10:C12)","v":0},{"$f":"OperatingExpenses[[#Totals],[Presupuesto]]-SUM(D10:D12)","v":0},{"$f":"OperatingExpenses[[#Totals],[Período actual]]-SUM(E10:E12)","v":0},{"$f":"SUMIFS(IngresosPorVentas[Período actual como porcentaje de ventas],IngresosPorVentas[Tipo de ingreso],\"Ingresos por ventas\")","v":{"v":0,"d":"0.00%"}},{"$f":"SUMIFS(IngresosPorVentas[Porcentaje de cambio desde el período anterior],IngresosPorVentas[Tipo de ingreso],\"Ingresos por ventas\")","v":{"v":0,"d":"0.00%"}},{"$f":"SUMIFS(IngresosPorVentas[Porcentaje de cambio desde presupuesto],IngresosPorVentas[Tipo de ingreso],\"Ingresos por ventas\")","v":{"v":0,"d":"0.00%"}}]
[null,"Otros ingresos [S]",{"$f":"Ingresos[[#Totals],[Período anterior]]","v":0},{"$f":"Ingresos[[#Totals],[Presupuesto]]","v":0},{"$f":"Ingresos[[#Totals],[Período actual]]","v":0},{"$f":"SUMIFS(IngresosPorVentas[Período actual como porcentaje de ventas],IngresosPorVentas[Tipo de ingreso],\"Ingresos por ventas\")","v":{"v":0,"d":"0.00%"}},{"$f":"SUMIFS(IngresosPorVentas[Porcentaje de cambio desde el período anterior],IngresosPorVentas[Tipo de ingreso],\"Ingresos por ventas\")","v":{"v":0,"d":"0.00%"}},{"$f":"SUMIFS(IngresosPorVentas[Porcentaje de cambio desde presupuesto],IngresosPorVentas[Tipo de ingreso],\"Ingresos por ventas\")","v":{"v":0,"d":"0.00%"}}]
[null,"Total de impuestos [T]",{"$f":"Impuestos[[#Totals],[Período anterior]]","v":0},{"$f":"Impuestos[[#Totals],[Presupuesto]]","v":0},{"$f":"Impuestos[[#Totals],[Período actual]]","v":0},{"$f":"SUMIFS(IngresosPorVentas[Período actual como porcentaje de ventas],IngresosPorVentas[Tipo de ingreso],\"Ingresos por ventas\")","v":{"v":0,"d":"0.00%"}},{"$f":"SUMIFS(IngresosPorVentas[Porcentaje de cambio desde el período anterior],IngresosPorVentas[Tipo de ingreso],\"Ingresos por ventas\")","v":{"v":0,"d":"0.00%"}},{"$f":"SUMIFS(IngresosPorVentas[Porcentaje de cambio desde presupuesto],IngresosPorVentas[Tipo de ingreso],\"Ingresos por ventas\")","v":{"v":0,"d":"0.00%"}}]
[]
[null,"Ganancia bruta [L=J-K]",{"$f":"IFERROR(C8-C9,\"-\")","v":0},{"$f":"IFERROR(D8-D9,\"-\")","v":0},{"$f":"IFERROR(Total_de_ingresos_por_ventas-Costo_de_ventas_total,\"-\")","v":0},{"$f":"IFERROR(IF(Total_de_ingresos_por_ventas=0,\"0.00%\",Total_de_ganacia_bruta/Total_de_ingresos_por_ventas),\"-\")","v":"0.00%"},{"$f":"IFERROR(IF(C17=Total_de_ganacia_bruta,0,IF(Total_de_ganacia_bruta>C17,ABS((Total_de_ganacia_bruta/C17)-1),IF(AND(Total_de_ganacia_bruta<C17,C17<0),-((Total_de_ganacia_bruta/C17)-1),(Total_de_ganacia_bruta/C17)-1))),\"-\")","v":{"v":0,"d":"0.00%"}},{"$f":"IFERROR(IF(D17=Total_de_ganacia_bruta,0,IF(Total_de_ganacia_bruta>D17,ABS((Total_de_ganacia_bruta/D17)-1),IF(AND(Total_de_ganacia_bruta<D17,D17<0),-((Total_de_ganacia_bruta/D17)-1),(Total_de_ganacia_bruta/D17)-1))),\"-\")","v":{"v":0,"d":"0.00%"}}]
[null,"Total de gastos operativos [Q=M+N+O+P]",{"$f":"IFERROR(C10+C11+C12+C13,\"-\")","v":0},{"$f":"IFERROR(D10+D11+D12+D13,\"-\")","v":0},{"$f":"IFERROR(Total_de_ventas_y_marketing+Total_de_investigación_y_desarrollo+Total_general_y_administrativo+Total_de_otros_gastos,\"-\")","v":0},{"$f":"IFERROR(IF(Total_de_ingresos_por_ventas=0,\"0.00%\",Total_de_gastos_operativos/Total_de_ingresos_por_ventas),\"-\")","v":"0.00%"},{"$f":"IFERROR(IF(C18=Total_de_gastos_operativos,0,IF(Total_de_gastos_operativos>C18,ABS((Total_de_gastos_operativos/C18)-1),IF(AND(Total_de_gastos_operativos<C18,C18<0),-((Total_de_gastos_operativos/C18)-1),(Total_de_gastos_operativos/C18)-1))),\"-\")","v":{"v":0,"d":"0.00%"}},{"$f":"IFERROR(IF(D18=Total_de_gastos_operativos,0,IF(Total_de_gastos_operativos>D18,ABS((Total_de_gastos_operativos/D18)-1),IF(AND(Total_de_gastos_operativos<D18,D18<0),-((Total_de_gastos_operativos/D18)-1),(Total_de_gastos_operativos/D18)-1))),\"-\")","v":{"v":0,"d":"0.00%"}}]
[null,"Ingresos de operaciones [R=L-Q]",{"$f":"IFERROR(C17-C18,\"-\")","v":0},{"$f":"IFERROR(D17-D18,\"-\")","v":0},{"$f":"IFERROR(Total_de_ganacia_bruta-Total_de_gastos_operativos,\"-\")","v":0},{"$f":"IFERROR(IF(Total_de_ingresos_por_ventas=0,\"0.00%\",Total_de_ingresos_por_operaciones/Total_de_ingresos_por_ventas),\"-\")","v":"0.00%"},{"$f":"IFERROR(IF(C19=Total_de_ingresos_por_operaciones,0,IF(Total_de_ingresos_por_operaciones>C19,ABS((Total_de_ingresos_por_operaciones/C19)-1),IF(AND(Total_de_ingresos_por_operaciones<C19,C19<0),-((Total_de_ingresos_por_operaciones/C19)-1),(Total_de_ingresos_por_operaciones/C19)-1))),\"-\")","v":{"v":0,"d":"0.00%"}},{"$f":"IFERROR(IF(D19=Total_de_ingresos_por_operaciones,0,IF(Total_de_ingresos_por_operaciones>D19,ABS((Total_de_ingresos_por_operaciones/D19)-1),IF(AND(Total_de_ingresos_por_operaciones<D19,D19<0),-((Total_de_ingresos_por_operaciones/D19)-1),(Total_de_ingresos_por_operaciones/D19)-1))),\"-\")","v":{"v":0,"d":"0.00%"}}]
[null,"Ganancia neta [U=R+S-T]",{"$f":"IFERROR(C19+C14-C15,\"-\")","v":0},{"$f":"IFERROR(D19+D14-D15,\"-\")","v":0},{"$f":"Total_de_ingresos_por_operaciones+Total_de_otros_ingresos-Total_de_impuestos","v":0},{"$f":"IFERROR(IF(Total_de_ingresos_por_ventas=0,\"0.00%\",Beneficios_netos/Total_de_ingresos_por_ventas),\"-\")","v":"0.00%"},{"$f":"IFERROR(IF(C20=Beneficios_netos,0,IF(Beneficios_netos>C20,ABS((Beneficios_netos/C20)-1),IF(AND(Beneficios_netos<C20,C20<0),-((Beneficios_netos/C20)-1),(Beneficios_netos/C20)-1))),\"-\")","v":{"v":0,"d":"0.00%"}},{"$f":"IFERROR(IF(D20=Beneficios_netos,0,IF(Beneficios_netos>D20,ABS((Beneficios_netos/D20)-1),IF(AND(Beneficios_netos<D20,D20<0),-((Beneficios_netos/D20)-1),(Beneficios_netos/D20)-1))),\"-\")","v":{"v":0,"d":"0.00%"}}]

{"sheet":"Ventas","index":1,"n_rows":13,"n_cols":9,"rows_kept":13,"merged":[[0,7,2,8]]}
[null,{"$f":"Título_del_libro","v":"Balance de pérdidas y ganancias"}]
[null,{"$f":"Nombre_de_la_compañía","v":"Nombre de la compañía"},"Expresado en millares"]
[null,"Ingresos por ventas",{"$f":"IFERROR(Ingresos_Por_Ventas,\"-\")","v":0}]
[null,"Tipo de ingreso","Descripción","Período anterior","Presupuesto","Período actual","Período actual como porcentaje de ventas","Porcentaje de cambio desde el período anterior","Porcentaje de cambio desde presupuesto"]
[null,"Ingresos por ventas","Producto/servicio 1",{"$nulls":3},{"$f":"IFERROR(IF(IngresosPorVentas[[#Totals],[Período actual]]=0,\"-\",IngresosPorVentas[[#This Row],[Período actual]]/Ingresos_Por_Ventas),\"-\")","v":"-"},{"$f":"IFERROR(IF(IngresosPorVentas[[#This Row],[Período anterior]]=IngresosPorVentas[[#This Row],[Período actual]],0,IF(IngresosPorVentas[[#This Row],[Período actual]]>IngresosPorVentas[[#This Row],[Período anterior]],ABS((IngresosPorVentas[[#This Row],[Período actual]]/IngresosPorVentas[[#This Row],[Período anterior]])-1),IF(AND(IngresosPorVentas[[#This Row],[Período actual]]<IngresosPorVentas[[#This Row],[Período anterior]],IngresosPorVentas[[#This Row],[Período anterior]]<0),-((IngresosPorVentas[[#This Row],[Período actual]]/IngresosPorVentas[[#This Row],[Período anterior]])-1),(IngresosPorVentas[[#This Row],[Período actual]]/IngresosPorVentas[[#This Row],[Período anterior]])-1))),\"-\")","v":{"v":0,"d":"0.00%"}},{"$f":"IFERROR(IF(IngresosPorVentas[[#This Row],[Presupuesto]]=IngresosPorVentas[[#This Row],[Período actual]],0,IF(IngresosPorVentas[[#This Row],[Período actual]]>IngresosPorVentas[[#This Row],[Presupuesto]],ABS((IngresosPorVentas[[#This Row],[Período actual]]/IngresosPorVentas[[#This Row],[Presupuesto]])-1),IF(AND(IngresosPorVentas[[#This Row],[Período actual]]<IngresosPorVentas[[#This Row],[Presupuesto]],IngresosPorVentas[[#This Row],[Presupuesto]]<0),-((IngresosPorVentas[[#This Row],[Período actual]]/IngresosPorVentas[[#This Row],[Presupuesto]])-1),(IngresosPorVentas[[#This Row],[Período actual]]/IngresosPorVentas[[#This Row],[Presupuesto]])-1))),\"-\")","v":{"v":0,"d":"0.00%"}}]
[null,"Ingresos por ventas","Producto/servicio 2",{"$nulls":3},{"$f":"IFERROR(IF(IngresosPorVentas[[#Totals],[Período actual]]=0,\"-\",IngresosPorVentas[[#This Row],[Período actual]]/Ingresos_Por_Ventas),\"-\")","v":"-"},{"$f":"IFERROR(IF(IngresosPorVentas[[#This Row],[Período anterior]]=IngresosPorVentas[[#This Row],[Período actual]],0,IF(IngresosPorVentas[[#This Row],[Período actual]]>IngresosPorVentas[[#This Row],[Período anterior]],ABS((IngresosPorVentas[[#This Row],[Período actual]]/IngresosPorVentas[[#This Row],[Período anterior]])-1),IF(AND(IngresosPorVentas[[#This Row],[Período actual]]<IngresosPorVentas[[#This Row],[Período anterior]],IngresosPorVentas[[#This Row],[Período anterior]]<0),-((IngresosPorVentas[[#This Row],[Período actual]]/IngresosPorVentas[[#This Row],[Período anterior]])-1),(IngresosPorVentas[[#This Row],[Período actual]]/IngresosPorVentas[[#This Row],[Período anterior]])-1))),\"-\")","v":{"v":0,"d":"0.00%"}},{"$f":"IFERROR(IF(IngresosPorVentas[[#This Row],[Presupuesto]]=IngresosPorVentas[[#This Row],[Período actual]],0,IF(IngresosPorVentas[[#This Row],[Período actual]]>IngresosPorVentas[[#This Row],[Presupuesto]],ABS((IngresosPorVentas[[#This Row],[Período actual]]/IngresosPorVentas[[#This Row],[Presupuesto]])-1),IF(AND(IngresosPorVentas[[#This Row],[Período actual]]<IngresosPorVentas[[#This Row],[Presupuesto]],IngresosPorVentas[[#This Row],[Presupuesto]]<0),-((IngresosPorVentas[[#This Row],[Período actual]]/IngresosPorVentas[[#This Row],[Presupuesto]])-1),(IngresosPorVentas[[#This Row],[Período actual]]/IngresosPorVentas[[#This Row],[Presupuesto]])-1))),\"-\")","v":{"v":0,"d":"0.00%"}}]
[null,"Ingresos por ventas","Producto/servicio 3",{"$nulls":3},{"$f":"IFERROR(IF(IngresosPorVentas[[#Totals],[Período actual]]=0,\"-\",IngresosPorVentas[[#This Row],[Período actual]]/Ingresos_Por_Ventas),\"-\")","v":"-"},{"$f":"IFERROR(IF(IngresosPorVentas[[#This Row],[Período anterior]]=IngresosPorVentas[[#This Row],[Período actual]],0,IF(IngresosPorVentas[[#This Row],[Período actual]]>IngresosPorVentas[[#This Row],[Período anterior]],ABS((IngresosPorVentas[[#This Row],[Período actual]]/IngresosPorVentas[[#This Row],[Período anterior]])-1),IF(AND(IngresosPorVentas[[#This Row],[Período actual]]<IngresosPorVentas[[#This Row],[Período anterior]],IngresosPorVentas[[#This Row],[Período anterior]]<0),-((IngresosPorVentas[[#This Row],[Período actual]]/IngresosPorVentas[[#This Row],[Período anterior]])-1),(IngresosPorVentas[[#This Row],[Período actual]]/IngresosPorVentas[[#This Row],[Período anterior]])-1))),\"-\")","v":{"v":0,"d":"0.00%"}},{"$f":"IFERROR(IF(IngresosPorVentas[[#This Row],[Presupuesto]]=IngresosPorVentas[[#This Row],[Período actual]],0,IF(IngresosPorVentas[[#This Row],[Período actual]]>IngresosPorVentas[[#This Row],[Presupuesto]],ABS((IngresosPorVentas[[#This Row],[Período actual]]/IngresosPorVentas[[#This Row],[Presupuesto]])-1),IF(AND(IngresosPorVentas[[#This Row],[Período actual]]<IngresosPorVentas[[#This Row],[Presupuesto]],IngresosPorVentas[[#This Row],[Presupuesto]]<0),-((IngresosPorVentas[[#This Row],[Período actual]]/IngresosPorVentas[[#This Row],[Presupuesto]])-1),(IngresosPorVentas[[#This Row],[Período actual]]/IngresosPorVentas[[#This Row],[Presupuesto]])-1))),\"-\")","v":{"v":0,"d":"0.00%"}}]
[null,"Ingresos por ventas","Producto/servicio 4",{"$nulls":3},{"$f":"IFERROR(IF(IngresosPorVentas[[#Totals],[Período actual]]=0,\"-\",IngresosPorVentas[[#This Row],[Período actual]]/Ingresos_Por_Ventas),\"-\")","v":"-"},{"$f":"IFERROR(IF(IngresosPorVentas[[#This Row],[Período anterior]]=IngresosPorVentas[[#This Row],[Período actual]],0,IF(IngresosPorVentas[[#This Row],[Período actual]]>IngresosPorVentas[[#This Row],[Período anterior]],ABS((IngresosPorVentas[[#This Row],[Período actual]]/IngresosPorVentas[[#This Row],[Período anterior]])-1),IF(AND(IngresosPorVentas[[#This Row],[Período actual]]<IngresosPorVentas[[#This Row],[Período anterior]],IngresosPorVentas[[#This Row],[Período anterior]]<0),-((IngresosPorVentas[[#This Row],[Período actual]]/IngresosPorVentas[[#This Row],[Período anterior]])-1),(IngresosPorVentas[[#This Row],[Período actual]]/IngresosPorVentas[[#This Row],[Período anterior]])-1))),\"-\")","v":{"v":0,"d":"0.00%"}},{"$f":"IFERROR(IF(IngresosPorVentas[[#This Row],[Presupuesto]]=IngresosPorVentas[[#This Row],[Período actual]],0,IF(IngresosPorVentas[[#This Row],[Período actual]]>IngresosPorVentas[[#This Row],[Presupuesto]],ABS((IngresosPorVentas[[#This Row],[Período actual]]/IngresosPorVentas[[#This Row],[Presupuesto]])-1),IF(AND(IngresosPorVentas[[#This Row],[Período actual]]<IngresosPorVentas[[#This Row],[Presupuesto]],IngresosPorVentas[[#This Row],[Presupuesto]]<0),-((IngresosPorVentas[[#This Row],[Período actual]]/IngresosPorVentas[[#This Row],[Presupuesto]])-1),(IngresosPorVentas[[#This Row],[Período actual]]/IngresosPorVentas[[#This Row],[Presupuesto]])-1))),\"-\")","v":{"v":0,"d":"0.00%"}}]
[null,"Costo de ventas","Producto/servicio 1",{"$nulls":3},{"$f":"IFERROR(IF(IngresosPorVentas[[#Totals],[Período actual]]=0,\"-\",IngresosPorVentas[[#This Row],[Período actual]]/Ingresos_Por_Ventas),\"-\")","v":"-"},{"$f":"IFERROR(IF(IngresosPorVentas[[#This Row],[Período anterior]]=IngresosPorVentas[[#This Row],[Período actual]],0,IF(IngresosPorVentas[[#This Row],[Período actual]]>IngresosPorVentas[[#This Row],[Período anterior]],ABS((IngresosPorVentas[[#This Row],[Período actual]]/IngresosPorVentas[[#This Row],[Período anterior]])-1),IF(AND(IngresosPorVentas[[#This Row],[Período actual]]<IngresosPorVentas[[#This Row],[Período anterior]],IngresosPorVentas[[#This Row],[Período anterior]]<0),-((IngresosPorVentas[[#This Row],[Período actual]]/IngresosPorVentas[[#This Row],[Período anterior]])-1),(IngresosPorVentas[[#This Row],[Período actual]]/IngresosPorVentas[[#This Row],[Período anterior]])-1))),\"-\")","v":{"v":0,"d":"0.00%"}},{"$f":"IFERROR(IF(IngresosPorVentas[[#This Row],[Presupuesto]]=IngresosPorVentas[[#This Row],[Período actual]],0,IF(IngresosPorVentas[[#This Row],[Período actual]]>IngresosPorVentas[[#This Row],[Presupuesto]],ABS((IngresosPorVentas[[#This Row],[Período actual]]/IngresosPorVentas[[#This Row],[Presupuesto]])-1),IF(AND(IngresosPorVentas[[#This Row],[Período actual]]<IngresosPorVentas[[#This Row],[Presupuesto]],IngresosPorVentas[[#This Row],[Presupuesto]]<0),-((IngresosPorVentas[[#This Row],[Período actual]]/IngresosPorVentas[[#This Row],[Presupuesto]])-1),(IngresosPorVentas[[#This Row],[Período actual]]/IngresosPorVentas[[#This Row],[Presupuesto]])-1))),\"-\")","v":{"v":0,"d":"0.00%"}}]
[null,"Costo de ventas","Producto/servicio 2",{"$nulls":3},{"$f":"IFERROR(IF(IngresosPorVentas[[#Totals],[Período actual]]=0,\"-\",IngresosPorVentas[[#This Row],[Período actual]]/Ingresos_Por_Ventas),\"-\")","v":"-"},{"$f":"IFERROR(IF(IngresosPorVentas[[#This Row],[Período anterior]]=IngresosPorVentas[[#This Row],[Período actual]],0,IF(IngresosPorVentas[[#This Row],[Período actual]]>IngresosPorVentas[[#This Row],[Período anterior]],ABS((IngresosPorVentas[[#This Row],[Período actual]]/IngresosPorVentas[[#This Row],[Período anterior]])-1),IF(AND(IngresosPorVentas[[#This Row],[Período actual]]<IngresosPorVentas[[#This Row],[Período anterior]],IngresosPorVentas[[#This Row],[Período anterior]]<0),-((IngresosPorVentas[[#This Row],[Período actual]]/IngresosPorVentas[[#This Row],[Período anterior]])-1),(IngresosPorVentas[[#This Row],[Período actual]]/IngresosPorVentas[[#This Row],[Período anterior]])-1))),\"-\")","v":{"v":0,"d":"0.00%"}},{"$f":"IFERROR(IF(IngresosPorVentas[[#This Row],[Presupuesto]]=IngresosPorVentas[[#This Row],[Período actual]],0,IF(IngresosPorVentas[[#This Row],[Período actual]]>IngresosPorVentas[[#This Row],[Presupuesto]],ABS((IngresosPorVentas[[#This Row],[Período actual]]/IngresosPorVentas[[#This Row],[Presupuesto]])-1),IF(AND(IngresosPorVentas[[#This Row],[Período actual]]<IngresosPorVentas[[#This Row],[Presupuesto]],IngresosPorVentas[[#This Row],[Presupuesto]]<0),-((IngresosPorVentas[[#This Row],[Período actual]]/IngresosPorVentas[[#This Row],[Presupuesto]])-1),(IngresosPorVentas[[#This Row],[Período actual]]/IngresosPorVentas[[#This Row],[Presupuesto]])-1))),\"-\")","v":{"v":0,"d":"0.00%"}}]
[null,"Costo de ventas","Producto/servicio 3",{"$nulls":3},{"$f":"IFERROR(IF(IngresosPorVentas[[#Totals],[Período actual]]=0,\"-\",IngresosPorVentas[[#This Row],[Período actual]]/Ingresos_Por_Ventas),\"-\")","v":"-"},{"$f":"IFERROR(IF(IngresosPorVentas[[#This Row],[Período anterior]]=IngresosPorVentas[[#This Row],[Período actual]],0,IF(IngresosPorVentas[[#This Row],[Período actual]]>IngresosPorVentas[[#This Row],[Período anterior]],ABS((IngresosPorVentas[[#This Row],[Período actual]]/IngresosPorVentas[[#This Row],[Período anterior]])-1),IF(AND(IngresosPorVentas[[#This Row],[Período actual]]<IngresosPorVentas[[#This Row],[Período anterior]],IngresosPorVentas[[#This Row],[Período anterior]]<0),-((IngresosPorVentas[[#This Row],[Período actual]]/IngresosPorVentas[[#This Row],[Período anterior]])-1),(IngresosPorVentas[[#This Row],[Período actual]]/IngresosPorVentas[[#This Row],[Período anterior]])-1))),\"-\")","v":{"v":0,"d":"0.00%"}},{"$f":"IFERROR(IF(IngresosPorVentas[[#This Row],[Presupuesto]]=IngresosPorVentas[[#This Row],[Período actual]],0,IF(IngresosPorVentas[[#This Row],[Período actual]]>IngresosPorVentas[[#This Row],[Presupuesto]],ABS((IngresosPorVentas[[#This Row],[Período actual]]/IngresosPorVentas[[#This Row],[Presupuesto]])-1),IF(AND(IngresosPorVentas[[#This Row],[Período actual]]<IngresosPorVentas[[#This Row],[Presupuesto]],IngresosPorVentas[[#This Row],[Presupuesto]]<0),-((IngresosPorVentas[[#This Row],[Período actual]]/IngresosPorVentas[[#This Row],[Presupuesto]])-1),(IngresosPorVentas[[#This Row],[Período actual]]/IngresosPorVentas[[#This Row],[Presupuesto]])-1))),\"-\")","v":{"v":0,"d":"0.00%"}}]
[null,"Costo de ventas","Producto/servicio 4",{"$nulls":3},{"$f":"IFERROR(IF(IngresosPorVentas[[#Totals],[Período actual]]=0,\"-\",IngresosPorVentas[[#This Row],[Período actual]]/Ingresos_Por_Ventas),\"-\")","v":"-"},{"$f":"IFERROR(IF(IngresosPorVentas[[#This Row],[Período anterior]]=IngresosPorVentas[[#This Row],[Período actual]],0,IF(IngresosPorVentas[[#This Row],[Período actual]]>IngresosPorVentas[[#This Row],[Período anterior]],ABS((IngresosPorVentas[[#This Row],[Período actual]]/IngresosPorVentas[[#This Row],[Período anterior]])-1),IF(AND(IngresosPorVentas[[#This Row],[Período actual]]<IngresosPorVentas[[#This Row],[Período anterior]],IngresosPorVentas[[#This Row],[Período anterior]]<0),-((IngresosPorVentas[[#This Row],[Período actual]]/IngresosPorVentas[[#This Row],[Período anterior]])-1),(IngresosPorVentas[[#This Row],[Período actual]]/IngresosPorVentas[[#This Row],[Período anterior]])-1))),\"-\")","v":{"v":0,"d":"0.00%"}},{"$f":"IFERROR(IF(IngresosPorVentas[[#This Row],[Presupuesto]]=IngresosPorVentas[[#This Row],[Período actual]],0,IF(IngresosPorVentas[[#This Row],[Período actual]]>IngresosPorVentas[[#This Row],[Presupuesto]],ABS((IngresosPorVentas[[#This Row],[Período actual]]/IngresosPorVentas[[#This Row],[Presupuesto]])-1),IF(AND(IngresosPorVentas[[#This Row],[Período actual]]<IngresosPorVentas[[#This Row],[Presupuesto]],IngresosPorVentas[[#This Row],[Presupuesto]]<0),-((IngresosPorVentas[[#This Row],[Período actual]]/IngresosPorVentas[[#This Row],[Presupuesto]])-1),(IngresosPorVentas[[#This Row],[Período actual]]/IngresosPorVentas[[#This Row],[Presupuesto]])-1))),\"-\")","v":{"v":0,"d":"0.00%"}}]
[null,"Total de ingresos por ventas",null,{"$f":"SUBTOTAL(109,IngresosPorVentas[Período anterior])","v":0},{"$f":"SUBTOTAL(109,IngresosPorVentas[Presupuesto])","v":0},{"$f":"SUBTOTAL(109,IngresosPorVentas[Período actual])","v":0},{"$f":"SUBTOTAL(109,IngresosPorVentas[Período actual como porcentaje de ventas])","v":{"v":0,"d":"0.00%"}},{"$f":"SUBTOTAL(109,IngresosPorVentas[Porcentaje de cambio desde el período anterior])","v":{"v":0,"d":"0.00%"}},{"$f":"SUBTOTAL(109,IngresosPorVentas[Porcentaje de cambio desde presupuesto])","v":{"v":0,"d":"0.00%"}}]

{"sheet":"Ingresos","index":2,"n_rows":7,"n_cols":9,"rows_kept":7,"merged":[[0,7,2,8]]}
[null,{"$f":"Título_del_libro","v":"Balance de pérdidas y ganancias"}]
[null,{"$f":"Nombre_de_la_compañía","v":"Nombre de la compañía"},"Expresado en millares"]
[null,"Ingresos",{"$f":"IFERROR(Ingresos[[#Totals],[Período actual]],\"-\")","v":0}]
[null,"Tipo de ingreso","Descripción","Período anterior","Presupuesto","Período actual","Período actual como porcentaje de ventas","Porcentaje de cambio desde el período anterior","Porcentaje de cambio desde presupuesto"]
[null,"Ingresos","Otros ingresos",{"$nulls":3},{"$f":"IFERROR(IF(Ingresos_Por_Ventas=0,\"-\",Ingresos[[#This Row],[Período actual]]/Ingresos_Por_Ventas),\"-\")","v":"-"},{"$f":"IFERROR(IF(Ingresos[[#This Row],[Período anterior]]=Ingresos[[#This Row],[Período actual]],0,IF(Ingresos[[#This Row],[Período actual]]>Ingresos[[#This Row],[Período anterior]],ABS((Ingresos[[#This Row],[Período actual]]/Ingresos[[#This Row],[Período anterior]])-1),IF(AND(Ingresos[[#This Row],[Período actual]]<Ingresos[[#This Row],[Período anterior]],Ingresos[[#This Row],[Período anterior]]<0),-((Ingresos[[#This Row],[Período actual]]/Ingresos[[#This Row],[Período anterior]])-1),(Ingresos[[#This Row],[Período actual]]/Ingresos[[#This Row],[Período anterior]])-1))),\"-\")","v":{"v":0,"d":"0.00%"}},{"$f":"IFERROR(IF(Ingresos[[#This Row],[Presupuesto]]=Ingresos[[#This Row],[Período actual]],0,IF(Ingresos[[#This Row],[Período actual]]>Ingresos[[#This Row],[Presupuesto]],ABS((Ingresos[[#This Row],[Período actual]]/Ingresos[[#This Row],[Presupuesto]])-1),IF(AND(Ingresos[[#This Row],[Período actual]]<Ingresos[[#This Row],[Presupuesto]],Ingresos[[#This Row],[Presupuesto]]<0),-((Ingresos[[#This Row],[Período actual]]/Ingresos[[#This Row],[Presupuesto]])-1),(Ingresos[[#This Row],[Período actual]]/Ingresos[[#This Row],[Presupuesto]])-1))),\"-\")","v":{"v":0,"d":"0.00%"}}]
[{"$nulls":6},{"$f":"IFERROR(IF(Ingresos_Por_Ventas=0,\"-\",Ingresos[[#This Row],[Período actual]]/Ingresos_Por_Ventas),\"-\")","v":"-"},{"$f":"IFERROR(IF(Ingresos[[#This Row],[Período anterior]]=Ingresos[[#This Row],[Período actual]],0,IF(Ingresos[[#This Row],[Período actual]]>Ingresos[[#This Row],[Período anterior]],ABS((Ingresos[[#This Row],[Período actual]]/Ingresos[[#This Row],[Período anterior]])-1),IF(AND(Ingresos[[#This Row],[Período actual]]<Ingresos[[#This Row],[Período anterior]],Ingresos[[#This Row],[Período anterior]]<0),-((Ingresos[[#This Row],[Período actual]]/Ingresos[[#This Row],[Período anterior]])-1),(Ingresos[[#This Row],[Período actual]]/Ingresos[[#This Row],[Período anterior]])-1))),\"-\")","v":{"v":0,"d":"0.00%"}},{"$f":"IFERROR(IF(Ingresos[[#This Row],[Presupuesto]]=Ingresos[[#This Row],[Período actual]],0,IF(Ingresos[[#This Row],[Período actual]]>Ingresos[[#This Row],[Presupuesto]],ABS((Ingresos[[#This Row],[Período actual]]/Ingresos[[#This Row],[Presupuesto]])-1),IF(AND(Ingresos[[#This Row],[Período actual]]<Ingresos[[#This Row],[Presupuesto]],Ingresos[[#This Row],[Presupuesto]]<0),-((Ingresos[[#This Row],[Período actual]]/Ingresos[[#This Row],[Presupuesto]])-1),(Ingresos[[#This Row],[Período actual]]/Ingresos[[#This Row],[Presupuesto]])-1))),\"-\")","v":{"v":0,"d":"0.00%"}}]
[null,"Total de ingresos por ventas",null,{"$f":"SUBTOTAL(109,Ingresos[Período anterior])","v":0},{"$f":"SUBTOTAL(109,Ingresos[Presupuesto])","v":0},{"$f":"SUBTOTAL(109,Ingresos[Período actual])","v":0},{"$f":"SUBTOTAL(109,Ingresos[Período actual como porcentaje de ventas])","v":{"v":0,"d":"0.00%"}},{"$f":"SUBTOTAL(109,Ingresos[Porcentaje de cambio desde el período anterior])","v":{"v":0,"d":"0.00%"}},{"$f":"SUBTOTAL(109,Ingresos[Porcentaje de cambio desde presupuesto])","v":{"v":0,"d":"0.00%"}}]

{"sheet":"Gastos","index":3,"n_rows":25,"n_cols":9,"rows_kept":25,"merged":[[0,7,2,8]]}
[null,{"$f":"Título_del_libro","v":"Balance de pérdidas y ganancias"}]
[null,{"$f":"Nombre_de_la_compañía","v":"Nombre de la compañía"},"Expresado en millares"]
[null,"Gastos operativos",{"$f":"IFERROR(OperatingExpenses[[#Totals],[Período actual]],\"-\")","v":0}]
[null,"Tipo de gasto","Descripción","Período anterior","Presupuesto","Período actual","Período actual como porcentaje de ventas","Porcentaje de cambio desde el período anterior","Porcentaje de cambio desde presupuesto"]
[null,"Ventas y marketing","Publicidad",{"$nulls":3},{"$f":"IFERROR(IF(Ingresos_Por_Ventas=0,\"-\",OperatingExpenses[[#This Row],[Período actual]]/Ingresos_Por_Ventas),\"-\")","v":"-"},{"$f":"IFERROR(IF(OperatingExpenses[[#This Row],[Período anterior]]=OperatingExpenses[[#This Row],[Período actual]],0,IF(OperatingExpenses[[#This Row],[Período actual]]>OperatingExpenses[[#This Row],[Período anterior]],ABS((OperatingExpenses[[#This Row],[Período actual]]/OperatingExpenses[[#This Row],[Período anterior]])-1),IF(AND(OperatingExpenses[[#This Row],[Período actual]]<OperatingExpenses[[#This Row],[Período anterior]],OperatingExpenses[[#This Row],[Período anterior]]<0),-((OperatingExpenses[[#This Row],[Período actual]]/OperatingExpenses[[#This Row],[Período anterior]])-1),(OperatingExpenses[[#This Row],[Período actual]]/OperatingExpenses[[#This Row],[Período anterior]])-1))),\"-\")","v":{"v":0,"d":"0.00%"}},{"$f":"IFERROR(IF(OperatingExpenses[[#This Row],[Presupuesto]]=OperatingExpenses[[#This Row],[Período actual]],0,IF(OperatingExpenses[[#This Row],[Período actual]]>OperatingExpenses[[#This Row],[Presupuesto]],ABS((OperatingExpenses[[#This Row],[Período actual]]/OperatingExpenses[[#This Row],[Presupuesto]])-1),IF(AND(OperatingExpenses[[#This Row],[Período actual]]<OperatingExpenses[[#This Row],[Presupuesto]],OperatingExpenses[[#This Row],[Presupuesto]]<0),-((OperatingExpenses[[#This Row],[Período actual]]/OperatingExpenses[[#This Row],[Presupuesto]])-1),(OperatingExpenses[[#This Row],[Período actual]]/OperatingExpenses[[#This Row],[Presupuesto]])-1))),\"-\")","v":{"v":0,"d":"0.00%"}}]
[null,"Ventas y marketing","Marketing directo",{"$nulls":3},{"$f":"IFERROR(IF(Ingresos_Por_Ventas=0,\"-\",OperatingExpenses[[#This Row],[Período actual]]/Ingresos_Por_Ventas),\"-\")","v":"-"},{"$f":"IFERROR(IF(OperatingExpenses[[#This Row],[Período anterior]]=OperatingExpenses[[#This Row],[Período actual]],0,IF(OperatingExpenses[[#This Row],[Período actual]]>OperatingExpenses[[#This Row],[Período anterior]],ABS((OperatingExpenses[[#This Row],[Período actual]]/OperatingExpenses[[#This Row],[Período anterior]])-1),IF(AND(OperatingExpenses[[#This Row],[Período actual]]<OperatingExpenses[[#This Row],[Período anterior]],OperatingExpenses[[#This Row],[Período anterior]]<0),-((OperatingExpenses[[#This Row],[Período actual]]/OperatingExpenses[[#This Row],[Período anterior]])-1),(OperatingExpenses[[#This Row],[Período actual]]/OperatingExpenses[[#This Row],[Período anterior]])-1))),\"-\")","v":{"v":0,"d":"0.00%"}},{"$f":"IFERROR(IF(OperatingExpenses[[#This Row],[Presupuesto]]=OperatingExpenses[[#This Row],[Período actual]],0,IF(OperatingExpenses[[#This Row],[Período actual]]>OperatingExpenses[[#This Row],[Presupuesto]],ABS((OperatingExpenses[[#This Row],[Período actual]]/OperatingExpenses[[#This Row],[Presupuesto]])-1),IF(AND(OperatingExpenses[[#This Row],[Período actual]]<OperatingExpenses[[#This Row],[Presupuesto]],OperatingExpenses[[#This Row],[Presupuesto]]<0),-((OperatingExpenses[[#This Row],[Período actual]]/OperatingExpenses[[#This Row],[Presupuesto]])-1),(OperatingExpenses[[#This Row],[Período actual]]/OperatingExpenses[[#This Row],[Presupuesto]])-1))),\"-\")","v":{"v":0,"d":"0.00%"}}]
[null,"Ventas y marketing","Otros gastos (especificar)",{"$nulls":3},{"$f":"IFERROR(IF(Ingresos_Por_Ventas=0,\"-\",OperatingExpenses[[#This Row],[Período actual]]/Ingresos_Por_Ventas),\"-\")","v":"-"},{"$f":"IFERROR(IF(OperatingExpenses[[#This Row],[Período anterior]]=OperatingExpenses[[#This Row],[Período actual]],0,IF(OperatingExpenses[[#This Row],[Período actual]]>OperatingExpenses[[#This Row],[Período anterior]],ABS((OperatingExpenses[[#This Row],[Período actual]]/OperatingExpenses[[#This Row],[Período anterior]])-1),IF(AND(OperatingExpenses[[#This Row],[Período actual]]<OperatingExpenses[[#This Row],[Período anterior]],OperatingExpenses[[#This Row],[Período anterior]]<0),-((OperatingExpenses[[#This Row],[Período actual]]/OperatingExpenses[[#This Row],[Período anterior]])-1),(OperatingExpenses[[#This Row],[Período actual]]/OperatingExpenses[[#This Row],[Período anterior]])-1))),\"-\")","v":{"v":0,"d":"0.00%"}},{"$f":"IFERROR(IF(OperatingExpenses[[#This Row],[Presupuesto]]=OperatingExpenses[[#This Row],[Período actual]],0,IF(OperatingExpenses[[#This Row],[Período actual]]>OperatingExpenses[[#This Row],[Presupuesto]],ABS((OperatingExpenses[[#This Row],[Período actual]]/OperatingExpenses[[#This Row],[Presupuesto]])-1),IF(AND(OperatingExpenses[[#This Row],[Período actual]]<OperatingExpenses[[#This Row],[Presupuesto]],OperatingExpenses[[#This Row],[Presupuesto]]<0),-((OperatingExpenses[[#This Row],[Período actual]]/OperatingExpenses[[#This Row],[Presupuesto]])-1),(OperatingExpenses[[#This Row],[Período actual]]/OperatingExpenses[[#This Row],[Presupuesto]])-1))),\"-\")","v":{"v":0,"d":"0.00%"}}]
[null,"Ventas y marketing","Otros gastos (especificar)",{"$nulls":3},{"$f":"IFERROR(IF(Ingresos_Por_Ventas=0,\"-\",OperatingExpenses[[#This Row],[Período actual]]/Ingresos_Por_Ventas),\"-\")","v":"-"},{"$f":"IFERROR(IF(OperatingExpenses[[#This Row],[Período anterior]]=OperatingExpenses[[#This Row],[Período actual]],0,IF(OperatingExpenses[[#This Row],[Período actual]]>OperatingExpenses[[#This Row],[Período anterior]],ABS((OperatingExpenses[[#This Row],[Período actual]]/OperatingExpenses[[#This Row],[Período anterior]])-1),IF(AND(OperatingExpenses[[#This Row],[Período actual]]<OperatingExpenses[[#This Row],[Período anterior]],OperatingExpenses[[#This Row],[Período anterior]]<0),-((OperatingExpenses[[#This Row],[Período actual]]/OperatingExpenses[[#This Row],[Período anterior]])-1),(OperatingExpenses[[#This Row],[Período actual]]/OperatingExpenses[[#This Row],[Período anterior]])-1))),\"-\")","v":{"v":0,"d":"0.00%"}},{"$f":"IFERROR(IF(OperatingExpenses[[#This Row],[Presupuesto]]=OperatingExpenses[[#This Row],[Período actual]],0,IF(OperatingExpenses[[#This Row],[Período actual]]>OperatingExpenses[[#This Row],[Presupuesto]],ABS((OperatingExpenses[[#This Row],[Período actual]]/OperatingExpenses[[#This Row],[Presupuesto]])-1),IF(AND(OperatingExpenses[[#This Row],[Período actual]]<OperatingExpenses[[#This Row],[Presupuesto]],OperatingExpenses[[#This Row],[Presupuesto]]<0),-((OperatingExpenses[[#This Row],[Período actual]]/OperatingExpenses[[#This Row],[Presupuesto]])-1),(OperatingExpenses[[#This Row],[Período actual]]/OperatingExpenses[[#This Row],[Presupuesto]])-1))),\"-\")","v":{"v":0,"d":"0.00%"}}]
[null,"Investigación y desarrollo","Licencias de tecnología",{"$nulls":3},{"$f":"IFERROR(IF(Ingresos_Por_Ventas=0,\"-\",OperatingExpenses[[#This Row],[Período actual]]/Ingresos_Por_Ventas),\"-\")","v":"-"},{"$f":"IFERROR(IF(OperatingExpenses[[#This Row],[Período anterior]]=OperatingExpenses[[#This Row],[Período actual]],0,IF(OperatingExpenses[[#This Row],[Período actual]]>OperatingExpenses[[#This Row],[Período anterior]],ABS((OperatingExpenses[[#This Row],[Período actual]]/OperatingExpenses[[#This Row],[Período anterior]])-1),IF(AND(OperatingExpenses[[#This Row],[Período actual]]<OperatingExpenses[[#This Row],[Período anterior]],OperatingExpenses[[#This Row],[Período anterior]]<0),-((OperatingExpenses[[#This Row],[Período actual]]/OperatingExpenses[[#This Row],[Período anterior]])-1),(OperatingExpenses[[#This Row],[Período actual]]/OperatingExpenses[[#This Row],[Período anterior]])-1))),\"-\")","v":{"v":0,"d":"0.00%"}},{"$f":"IFERROR(IF(OperatingExpenses[[#This Row],[Presupuesto]]=OperatingExpenses[[#This Row],[Período actual]],0,IF(OperatingExpenses[[#This Row],[Período actual]]>OperatingExpenses[[#This Row],[Presupuesto]],ABS((OperatingExpenses[[#This Row],[Período actual]]/OperatingExpenses[[#This Row],[Presupuesto]])-1),IF(AND(OperatingExpenses[[#This Row],[Período actual]]<OperatingExpenses[[#This Row],[Presupuesto]],OperatingExpenses[[#This Row],[Presupuesto]]<0),-((OperatingExpenses[[#This Row],[Período actual]]/OperatingExpenses[[#This Row],[Presupuesto]])-1),(OperatingExpenses[[#This Row],[Período actual]]/OperatingExpenses[[#This Row],[Presupuesto]])-1))),\"-\")","v":{"v":0,"d":"0.00%"}}]
[null,"Investigación y desarrollo","Patentes ",{"$nulls":3},{"$f":"IFERROR(IF(Ingresos_Por_Ventas=0,\"-\",OperatingExpenses[[#This Row],[Período actual]]/Ingresos_Por_Ventas),\"-\")","v":"-"},{"$f":"IFERROR(IF(OperatingExpenses[[#This Row],[Período anterior]]=OperatingExpenses[[#This Row],[Período actual]],0,IF(OperatingExpenses[[#This Row],[Período actual]]>OperatingExpenses[[#This Row],[Período anterior]],ABS((OperatingExpenses[[#This Row],[Período actual]]/OperatingExpenses[[#This Row],[Período anterior]])-1),IF(AND(OperatingExpenses[[#This Row],[Período actual]]<OperatingExpenses[[#This Row],[Período anterior]],OperatingExpenses[[#This Row],[Período anterior]]<0),-((OperatingExpenses[[#This Row],[Período actual]]/OperatingExpenses[[#This Row],[Período anterior]])-1),(OperatingExpenses[[#This Row],[Período actual]]/OperatingExpenses[[#This Row],[Período anterior]])-1))),\"-\")","v":{"v":0,"d":"0.00%"}},{"$f":"IFERROR(IF(OperatingExpenses[[#This Row],[Presupuesto]]=OperatingExpenses[[#This Row],[Período actual]],0,IF(OperatingExpenses[[#This Row],[Período actual]]>OperatingExpenses[[#This Row],[Presupuesto]],ABS((OperatingExpenses[[#This Row],[Período actual]]/OperatingExpenses[[#This Row],[Presupuesto]])-1),IF(AND(OperatingExpenses[[#This Row],[Período actual]]<OperatingExpenses[[#This Row],[Presupuesto]],OperatingExpenses[[#This Row],[Presupuesto]]<0),-((OperatingExpenses[[#This Row],[Período actual]]/OperatingExpenses[[#This Row],[Presupuesto]])-1),(OperatingExpenses[[#This Row],[Período actual]]/OperatingExpenses[[#This Row],[Presupuesto]])-1))),\"-\")","v":{"v":0,"d":"0.00%"}}]
[null,"Investigación y desarrollo","Otros gastos (especificar)",{"$nulls":3},{"$f":"IFERROR(IF(Ingresos_Por_Ventas=0,\"-\",OperatingExpenses[[#This Row],[Período actual]]/Ingresos_Por_Ventas),\"-\")","v":"-"},{"$f":"IFERROR(IF(OperatingExpenses[[#This Row],[Período anterior]]=OperatingExpenses[[#This Row],[Período actual]],0,IF(OperatingExpenses[[#This Row],[Período actual]]>OperatingExpenses[[#This Row],[Período anterior]],ABS((OperatingExpenses[[#This Row],[Período actual]]/OperatingExpenses[[#This Row],[Período anterior]])-1),IF(AND(OperatingExpenses[[#This Row],[Período actual]]<OperatingExpenses[[#This Row],[Período anterior]],OperatingExpenses[[#This Row],[Período anterior]]<0),-((OperatingExpenses[[#This Row],[Período actual]]/OperatingExpenses[[#This Row],[Período anterior]])-1),(OperatingExpenses[[#This Row],[Período actual]]/OperatingExpenses[[#This Row],[Período anterior]])-1))),\"-\")","v":{"v":0,"d":"0.00%"}},{"$f":"IFERROR(IF(OperatingExpenses[[#This Row],[Presupuesto]]=OperatingExpenses[[#This Row],[Período actual]],0,IF(OperatingExpenses[[#This Row],[Período actual]]>OperatingExpenses[[#This Row],[Presupuesto]],ABS((OperatingExpenses[[#This Row],[Período actual]]/OperatingExpenses[[#This Row],[Presupuesto]])-1),IF(AND(OperatingExpenses[[#This Row],[Período actual]]<OperatingExpenses[[#This Row],[Presupuesto]],OperatingExpenses[[#This Row],[Presupuesto]]<0),-((OperatingExpenses[[#This Row],[Período actual]]/OperatingExpenses[[#This Row],[Presupuesto]])-1),(OperatingExpenses[[#This Row],[Período actual]]/OperatingExpenses[[#This Row],[Presupuesto]])-1))),\"-\")","v":{"v":0,"d":"0.00%"}}]
[null,"Investigación y desarrollo","Otros gastos (especificar)",{"$nulls":3},{"$f":"IFERROR(IF(Ingresos_Por_Ventas=0,\"-\",OperatingExpenses[[#This Row],[Período actual]]/Ingresos_Por_Ventas),\"-\")","v":"-"},{"$f":"IFERROR(IF(OperatingExpenses[[#This Row],[Período anterior]]=OperatingExpenses[[#This Row],[Período actual]],0,IF(OperatingExpenses[[#This Row],[Período actual]]>OperatingExpenses[[#This Row],[Período anterior]],ABS((OperatingExpenses[[#This Row],[Período actual]]/OperatingExpenses[[#This Row],[Período anterior]])-1),IF(AND(OperatingExpenses[[#This Row],[Período actual]]<OperatingExpenses[[#This Row],[Período anterior]],OperatingExpenses[[#This Row],[Período anterior]]<0),-((OperatingExpenses[[#This Row],[Período actual]]/OperatingExpenses[[#This Row],[Período anterior]])-1),(OperatingExpenses[[#This Row],[Período actual]]/OperatingExpenses[[#This Row],[Período anterior]])-1))),\"-\")","v":{"v":0,"d":"0.00%"}},{"$f":"IFERROR(IF(OperatingExpenses[[#This Row],[Presupuesto]]=OperatingExpenses[[#This Row],[Período actual]],0,IF(OperatingExpenses[[#This Row],[Período actual]]>OperatingExpenses[[#This Row],[Presupuesto]],ABS((OperatingExpenses[[#This Row],[Período actual]]/OperatingExpenses[[#This Row],[Presupuesto]])-1),IF(AND(OperatingExpenses[[#This Row],[Período actual]]<OperatingExpenses[[#This Row],[Presupuesto]],OperatingExpenses[[#This Row],[Presupuesto]]<0),-((OperatingExpenses[[#This Row],[Período actual]]/OperatingExpenses[[#This Row],[Presupuesto]])-1),(OperatingExpenses[[#This Row],[Período actual]]/OperatingExpenses[[#This Row],[Presupuesto]])-1))),\"-\")","v":{"v":0,"d":"0.00%"}}]
[null,"Generales y administrativos","Sueldos y salarios",{"$nulls":3},{"$f":"IFERROR(IF(Ingresos_Por_Ventas=0,\"-\",OperatingExpenses[[#This Row],[Período actual]]/Ingresos_Por_Ventas),\"-\")","v":"-"},{"$f":"IFERROR(IF(OperatingExpenses[[#This Row],[Período anterior]]=OperatingExpenses[[#This Row],[Período actual]],0,IF(OperatingExpenses[[#This Row],[Período actual]]>OperatingExpenses[[#This Row],[Período anterior]],ABS((OperatingExpenses[[#This Row],[Período actual]]/OperatingExpenses[[#This Row],[Período anterior]])-1),IF(AND(OperatingExpenses[[#This Row],[Período actual]]<OperatingExpenses[[#This Row],[Período anterior]],OperatingExpenses[[#This Row],[Período anterior]]<0),-((OperatingExpenses[[#This Row],[Período actual]]/OperatingExpenses[[#This Row],[Período anterior]])-1),(OperatingExpenses[[#This Row],[Período actual]]/OperatingExpenses[[#This Row],[Período anterior]])-1))),\"-\")","v":{"v":0,"d":"0.00%"}},{"$f":"IFERROR(IF(OperatingExpenses[[#This Row],[Presupuesto]]=OperatingExpenses[[#This Row],[Período actual]],0,IF(OperatingExpenses[[#This Row],[Período actual]]>OperatingExpenses[[#This Row],[Presupuesto]],ABS((OperatingExpenses[[#This Row],[Período actual]]/OperatingExpenses[[#This Row],[Presupuesto]])-1),IF(AND(OperatingExpenses[[#This Row],[Período actual]]<OperatingExpenses[[#This Row],[Presupuesto]],OperatingExpenses[[#This Row],[Presupuesto]]<0),-((OperatingExpenses[[#This Row],[Período actual]]/OperatingExpenses[[#This Row],[Presupuesto]])-1),(OperatingExpenses[[#This Row],[Período actual]]/OperatingExpenses[[#This Row],[Presupuesto]])-1))),\"-\")","v":{"v":0,"d":"0.00%"}}]
[null,"Generales y administrativos","Servicios externos",{"$nulls":3},{"$f":"IFERROR(IF(Ingresos_Por_Ventas=0,\"-\",OperatingExpenses[[#This Row],[Período actual]]/Ingresos_Por_Ventas),\"-\")","v":"-"},{"$f":"IFERROR(IF(OperatingExpenses[[#This Row],[Período anterior]]=OperatingExpenses[[#This Row],[Período actual]],0,IF(OperatingExpenses[[#This Row],[Período actual]]>OperatingExpenses[[#This Row],[Período anterior]],ABS((OperatingExpenses[[#This Row],[Período actual]]/OperatingExpenses[[#This Row],[Período anterior]])-1),IF(AND(OperatingExpenses[[#This Row],[Período actual]]<OperatingExpenses[[#This Row],[Período anterior]],OperatingExpenses[[#This Row],[Período anterior]]<0),-((OperatingExpenses[[#This Row],[Período actual]]/OperatingExpenses[[#This Row],[Período anterior]])-1),(OperatingExpenses[[#This Row],[Período actual]]/OperatingExpenses[[#This Row],[Período anterior]])-1))),\"-\")","v":{"v":0,"d":"0.00%"}},{"$f":"IFERROR(IF(OperatingExpenses[[#This Row],[Presupuesto]]=OperatingExpenses[[#This Row],[Período actual]],0,IF(OperatingExpenses[[#This Row],[Período actual]]>OperatingExpenses[[#This Row],[Presupuesto]],ABS((OperatingExpenses[[#This Row],[Período actual]]/OperatingExpenses[[#This Row],[Presupuesto]])-1),IF(AND(OperatingExpenses[[#This Row],[Período actual]]<OperatingExpenses[[#This Row],[Presupuesto]],OperatingExpenses[[#This Row],[Presupuesto]]<0),-((OperatingExpenses[[#This Row],[Período actual]]/OperatingExpenses[[#This Row],[Presupuesto]])-1),(OperatingExpenses[[#This Row],[Período actual]]/OperatingExpenses[[#This Row],[Presupuesto]])-1))),\"-\")","v":{"v":0,"d":"0.00%"}}]
[null,"Generales y administrativos","Material escolar",{"$nulls":3},{"$f":"IFERROR(IF(Ingresos_Por_Ventas=0,\"-\",OperatingExpenses[[#This Row],[Período actual]]/Ingresos_Por_Ventas),\"-\")","v":"-"},{"$f":"IFERROR(IF(OperatingExpenses[[#This Row],[Período anterior]]=OperatingExpenses[[#This Row],[Período actual]],0,IF(OperatingExpenses[[#This Row],[Período actual]]>OperatingExpenses[[#This Row],[Período anterior]],ABS((OperatingExpenses[[#This Row],[Período actual]]/OperatingExpenses[[#This Row],[Período anterior]])-1),IF(AND(OperatingExpenses[[#This Row],[Período actual]]<OperatingExpenses[[#This Row],[Período anterior]],OperatingExpenses[[#This Row],[Período anterior]]<0),-((OperatingExpenses[[#This Row],[Período actual]]/OperatingExpenses[[#This Row],[Período anterior]])-1),(OperatingExpenses[[#This Row],[Período actual]]/OperatingExpenses[[#This Row],[Período anterior]])-1))),\"-\")","v":{"v":0,"d":"0.00%"}},{"$f":"IFERROR(IF(OperatingExpenses[[#This Row],[Presupuesto]]=OperatingExpenses[[#This Row],[Período actual]],0,IF(OperatingExpenses[[#This Row],[Período actual]]>OperatingExpenses[[#This Row],[Presupuesto]],ABS((OperatingExpenses[[#This Row],[Período actual]]/OperatingExpenses[[#This Row],[Presupuesto]])-1),IF(AND(OperatingExpenses[[#This Row],[Período actual]]<OperatingExpenses[[#This Row],[Presupuesto]],OperatingExpenses[[#This Row],[Presupuesto]]<0),-((OperatingExpenses[[#This Row],[Período actual]]/OperatingExpenses[[#This Row],[Presupuesto]])-1),(OperatingExpenses[[#This Row],[Período actual]]/OperatingExpenses[[#This Row],[Presupuesto]])-1))),\"-\")","v":{"v":0,"d":"0.00%"}}]
[null,"Generales y administrativos","Comidas y entretenimiento",{"$nulls":3},{"$f":"IFERROR(IF(Ingresos_Por_Ventas=0,\"-\",OperatingExpenses[[#This Row],[Período actual]]/Ingresos_Por_Ventas),\"-\")","v":"-"},{"$f":"IFERROR(IF(OperatingExpenses[[#This Row],[Período anterior]]=OperatingExpenses[[#This Row],[Período actual]],0,IF(OperatingExpenses[[#This Row],[Período actual]]>OperatingExpenses[[#This Row],[Período anterior]],ABS((OperatingExpenses[[#This Row],[Período actual]]/OperatingExpenses[[#This Row],[Período anterior]])-1),IF(AND(OperatingExpenses[[#This Row],[Período actual]]<OperatingExpenses[[#This Row],[Período anterior]],OperatingExpenses[[#This Row],[Período anterior]]<0),-((OperatingExpenses[[#This Row],[Período actual]]/OperatingExpenses[[#This Row],[Período anterior]])-1),(OperatingExpenses[[#This Row],[Período actual]]/OperatingExpenses[[#This Row],[Período anterior]])-1))),\"-\")","v":{"v":0,"d":"0.00%"}},{"$f":"IFERROR(IF(OperatingExpenses[[#This Row],[Presupuesto]]=OperatingExpenses[[#This Row],[Período actual]],0,IF(OperatingExpenses[[#This Row],[Período actual]]>OperatingExpenses[[#This Row],[Presupuesto]],ABS((OperatingExpenses[[#This Row],[Período actual]]/OperatingExpenses[[#This Row],[Presupuesto]])-1),IF(AND(OperatingExpenses[[#This Row],[Período actual]]<OperatingExpenses[[#This Row],[Presupuesto]],OperatingExpenses[[#This Row],[Presupuesto]]<0),-((OperatingExpenses[[#This Row],[Período actual]]/OperatingExpenses[[#This Row],[Presupuesto]])-1),(OperatingExpenses[[#This Row],[Período actual]]/OperatingExpenses[[#This Row],[Presupuesto]])-1))),\"-\")","v":{"v":0,"d":"0.00%"}}]
[null,"Generales y administrativos","Alquiler",{"$nulls":3},{"$f":"IFERROR(IF(Ingresos_Por_Ventas=0,\"-\",OperatingExpenses[[#This Row],[Período actual]]/Ingresos_Por_Ventas),\"-\")","v":"-"},{"$f":"IFERROR(IF(OperatingExpenses[[#This Row],[Período anterior]]=OperatingExpenses[[#This Row],[Período actual]],0,IF(OperatingExpenses[[#This Row],[Período actual]]>OperatingExpenses[[#This Row],[Período anterior]],ABS((OperatingExpenses[[#This Row],[Período actual]]/OperatingExpenses[[#This Row],[Período anterior]])-1),IF(AND(OperatingExpenses[[#This Row],[Período actual]]<OperatingExpenses[[#This Row],[Período anterior]],OperatingExpenses[[#This Row],[Período anterior]]<0),-((OperatingExpenses[[#This Row],[Período actual]]/OperatingExpenses[[#This Row],[Período anterior]])-1),(OperatingExpenses[[#This Row],[Período actual]]/OperatingExpenses[[#This Row],[Período anterior]])-1))),\"-\")","v":{"v":0,"d":"0.00%"}},{"$f":"IFERROR(IF(OperatingExpenses[[#This Row],[Presupuesto]]=OperatingExpenses[[#This Row],[Período actual]],0,IF(OperatingExpenses[[#This Row],[Período actual]]>OperatingExpenses[[#This Row],[Presupuesto]],ABS((OperatingExpenses[[#This Row],[Período actual]]/OperatingExpenses[[#This Row],[Presupuesto]])-1),IF(AND(OperatingExpenses[[#This Row],[Período actual]]<OperatingExpenses[[#This Row],[Presupuesto]],OperatingExpenses[[#This Row],[Presupuesto]]<0),-((OperatingExpenses[[#This Row],[Período actual]]/OperatingExpenses[[#This Row],[Presupuesto]])-1),(OperatingExpenses[[#This Row],[Período actual]]/OperatingExpenses[[#This Row],[Presupuesto]])-1))),\"-\")","v":{"v":0,"d":"0.00%"}}]
[null,"Generales y administrativos","Teléfono",{"$nulls":3},{"$f":"IFERROR(IF(Ingresos_Por_Ventas=0,\"-\",OperatingExpenses[[#This Row],[Período actual]]/Ingresos_Por_Ventas),\"-\")","v":"-"},{"$f":"IFERROR(IF(OperatingExpenses[[#This Row],[Período anterior]]=OperatingExpenses[[#This Row],[Período actual]],0,IF(OperatingExpenses[[#This Row],[Período actual]]>OperatingExpenses[[#This Row],[Período anterior]],ABS((OperatingExpenses[[#This Row],[Período actual]]/OperatingExpenses[[#This Row],[Período anterior]])-1),IF(AND(OperatingExpenses[[#This Row],[Período actual]]<OperatingExpenses[[#This Row],[Período anterior]],OperatingExpenses[[#This Row],[Período anterior]]<0),-((OperatingExpenses[[#This Row],[Período actual]]/OperatingExpenses[[#This Row],[Período anterior]])-1),(OperatingExpenses[[#This Row],[Período actual]]/OperatingExpenses[[#This Row],[Período anterior]])-1))),\"-\")","v":{"v":0,"d":"0.00%"}},{"$f":"IFERROR(IF(OperatingExpenses[[#This Row],[Presupuesto]]=OperatingExpenses[[#This Row],[Período actual]],0,IF(OperatingExpenses[[#This Row],[Período actual]]>OperatingExpenses[[#This Row],[Presupuesto]],ABS((OperatingExpenses[[#This Row],[Período actual]]/OperatingExpenses[[#This Row],[Presupuesto]])-1),IF(AND(OperatingExpenses[[#This Row],[Período actual]]<OperatingExpenses[[#This Row],[Presupuesto]],OperatingExpenses[[#This Row],[Presupuesto]]<0),-((OperatingExpenses[[#This Row],[Período actual]]/OperatingExpenses[[#This Row],[Presupuesto]])-1),(OperatingExpenses[[#This Row],[Período actual]]/OperatingExpenses[[#This Row],[Presupuesto]])-1))),\"-\")","v":{"v":0,"d":"0.00%"}}]
[null,"Generales y administrativos","Servicios públicos",{"$nulls":3},{"$f":"IFERROR(IF(Ingresos_Por_Ventas=0,\"-\",OperatingExpenses[[#This Row],[Período actual]]/Ingresos_Por_Ventas),\"-\")","v":"-"},{"$f":"IFERROR(IF(OperatingExpenses[[#This Row],[Período anterior]]=OperatingExpenses[[#This Row],[Período actual]],0,IF(OperatingExpenses[[#This Row],[Período actual]]>OperatingExpenses[[#This Row],[Período anterior]],ABS((OperatingExpenses[[#This Row],[Período actual]]/OperatingExpenses[[#This Row],[Período anterior]])-1),IF(AND(OperatingExpenses[[#This Row],[Período actual]]<OperatingExpenses[[#This Row],[Período anterior]],OperatingExpenses[[#This Row],[Período anterior]]<0),-((OperatingExpenses[[#This Row],[Período actual]]/OperatingExpenses[[#This Row],[Período anterior]])-1),(OperatingExpenses[[#This Row],[Período actual]]/OperatingExpenses[[#This Row],[Período anterior]])-1))),\"-\")","v":{"v":0,"d":"0.00%"}},{"$f":"IFERROR(IF(OperatingExpenses[[#This Row],[Presupuesto]]=OperatingExpenses[[#This Row],[Período actual]],0,IF(OperatingExpenses[[#This Row],[Período actual]]>OperatingExpenses[[#This Row],[Presupuesto]],ABS((OperatingExpenses[[#This Row],[Período actual]]/OperatingExpenses[[#This Row],[Presupuesto]])-1),IF(AND(OperatingExpenses[[#This Row],[Período actual]]<OperatingExpenses[[#This Row],[Presupuesto]],OperatingExpenses[[#This Row],[Presupuesto]]<0),-((OperatingExpenses[[#This Row],[Período actual]]/OperatingExpenses[[#This Row],[Presupuesto]])-1),(OperatingExpenses[[#This Row],[Período actual]]/OperatingExpenses[[#This Row],[Presupuesto]])-1))),\"-\")","v":{"v":0,"d":"0.00%"}}]
[null,"Generales y administrativos","Amortización",{"$nulls":3},{"$f":"IFERROR(IF(Ingresos_Por_Ventas=0,\"-\",OperatingExpenses[[#This Row],[Período actual]]/Ingresos_Por_Ventas),\"-\")","v":"-"},{"$f":"IFERROR(IF(OperatingExpenses[[#This Row],[Período anterior]]=OperatingExpenses[[#This Row],[Período actual]],0,IF(OperatingExpenses[[#This Row],[Período actual]]>OperatingExpenses[[#This Row],[Período anterior]],ABS((OperatingExpenses[[#This Row],[Período actual]]/OperatingExpenses[[#This Row],[Período anterior]])-1),IF(AND(OperatingExpenses[[#This Row],[Período actual]]<OperatingExpenses[[#This Row],[Período anterior]],OperatingExpenses[[#This Row],[Período anterior]]<0),-((OperatingExpenses[[#This Row],[Período actual]]/OperatingExpenses[[#This Row],[Período anterior]])-1),(OperatingExpenses[[#This Row],[Período actual]]/OperatingExpenses[[#This Row],[Período anterior]])-1))),\"-\")","v":{"v":0,"d":"0.00%"}},{"$f":"IFERROR(IF(OperatingExpenses[[#This Row],[Presupuesto]]=OperatingExpenses[[#This Row],[Período actual]],0,IF(OperatingExpenses[[#This Row],[Período actual]]>OperatingExpenses[[#This Row],[Presupuesto]],ABS((OperatingExpenses[[#This Row],[Período actual]]/OperatingExpenses[[#This Row],[Presupuesto]])-1),IF(AND(OperatingExpenses[[#This Row],[Período actual]]<OperatingExpenses[[#This Row],[Presupuesto]],OperatingExpenses[[#This Row],[Presupuesto]]<0),-((OperatingExpenses[[#This Row],[Período actual]]/OperatingExpenses[[#This Row],[Presupuesto]])-1),(OperatingExpenses[[#This Row],[Período actual]]/OperatingExpenses[[#This Row],[Presupuesto]])-1))),\"-\")","v":{"v":0,"d":"0.00%"}}]
[null,"Generales y administrativos","Seguro",{"$nulls":3},{"$f":"IFERROR(IF(Ingresos_Por_Ventas=0,\"-\",OperatingExpenses[[#This Row],[Período actual]]/Ingresos_Por_Ventas),\"-\")","v":"-"},{"$f":"IFERROR(IF(OperatingExpenses[[#This Row],[Período anterior]]=OperatingExpenses[[#This Row],[Período actual]],0,IF(OperatingExpenses[[#This Row],[Período actual]]>OperatingExpenses[[#This Row],[Período anterior]],ABS((OperatingExpenses[[#This Row],[Período actual]]/OperatingExpenses[[#This Row],[Período anterior]])-1),IF(AND(OperatingExpenses[[#This Row],[Período actual]]<OperatingExpenses[[#This Row],[Período anterior]],OperatingExpenses[[#This Row],[Período anterior]]<0),-((OperatingExpenses[[#This Row],[Período actual]]/OperatingExpenses[[#This Row],[Período anterior]])-1),(OperatingExpenses[[#This Row],[Período actual]]/OperatingExpenses[[#This Row],[Período anterior]])-1))),\"-\")","v":{"v":0,"d":"0.00%"}},{"$f":"IFERROR(IF(OperatingExpenses[[#This Row],[Presupuesto]]=OperatingExpenses[[#This Row],[Período actual]],0,IF(OperatingExpenses[[#This Row],[Período actual]]>OperatingExpenses[[#This Row],[Presupuesto]],ABS((OperatingExpenses[[#This Row],[Período actual]]/OperatingExpenses[[#This Row],[Presupuesto]])-1),IF(AND(OperatingExpenses[[#This Row],[Período actual]]<OperatingExpenses[[#This Row],[Presupuesto]],OperatingExpenses[[#This Row],[Presupuesto]]<0),-((OperatingExpenses[[#This Row],[Período actual]]/OperatingExpenses[[#This Row],[Presupuesto]])-1),(OperatingExpenses[[#This Row],[Período actual]]/OperatingExpenses[[#This Row],[Presupuesto]])-1))),\"-\")","v":{"v":0,"d":"0.00%"}}]
[null,"Generales y administrativos","Reparaciones y mantenimiento",{"$nulls":3},{"$f":"IFERROR(IF(Ingresos_Por_Ventas=0,\"-\",OperatingExpenses[[#This Row],[Período actual]]/Ingresos_Por_Ventas),\"-\")","v":"-"},{"$f":"IFERROR(IF(OperatingExpenses[[#This Row],[Período anterior]]=OperatingExpenses[[#This Row],[Período actual]],0,IF(OperatingExpenses[[#This Row],[Período actual]]>OperatingExpenses[[#This Row],[Período anterior]],ABS((OperatingExpenses[[#This Row],[Período actual]]/OperatingExpenses[[#This Row],[Período anterior]])-1),IF(AND(OperatingExpenses[[#This Row],[Período actual]]<OperatingExpenses[[#This Row],[Período anterior]],OperatingExpenses[[#This Row],[Período anterior]]<0),-((OperatingExpenses[[#This Row],[Período actual]]/OperatingExpenses[[#This Row],[Período anterior]])-1),(OperatingExpenses[[#This Row],[Período actual]]/OperatingExpenses[[#This Row],[Período anterior]])-1))),\"-\")","v":{"v":0,"d":"0.00%"}},{"$f":"IFERROR(IF(OperatingExpenses[[#This Row],[Presupuesto]]=OperatingExpenses[[#This Row],[Período actual]],0,IF(OperatingExpenses[[#This Row],[Período actual]]>OperatingExpenses[[#This Row],[Presupuesto]],ABS((OperatingExpenses[[#This Row],[Período actual]]/OperatingExpenses[[#This Row],[Presupuesto]])-1),IF(AND(OperatingExpenses[[#This Row],[Período actual]]<OperatingExpenses[[#This Row],[Presupuesto]],OperatingExpenses[[#This Row],[Presupuesto]]<0),-((OperatingExpenses[[#This Row],[Período actual]]/OperatingExpenses[[#This Row],[Presupuesto]])-1),(OperatingExpenses[[#This Row],[Período actual]]/OperatingExpenses[[#This Row],[Presupuesto]])-1))),\"-\")","v":{"v":0,"d":"0.00%"}}]
[null,"Generales y administrativos","Otros gastos (especificar)",{"$nulls":3},{"$f":"IFERROR(IF(Ingresos_Por_Ventas=0,\"-\",OperatingExpenses[[#This Row],[Período actual]]/Ingresos_Por_Ventas),\"-\")","v":"-"},{"$f":"IFERROR(IF(OperatingExpenses[[#This Row],[Período anterior]]=OperatingExpenses[[#This Row],[Período actual]],0,IF(OperatingExpenses[[#This Row],[Período actual]]>OperatingExpenses[[#This Row],[Período anterior]],ABS((OperatingExpenses[[#This Row],[Período actual]]/OperatingExpenses[[#This Row],[Período anterior]])-1),IF(AND(OperatingExpenses[[#This Row],[Período actual]]<OperatingExpenses[[#This Row],[Período anterior]],OperatingExpenses[[#This Row],[Período anterior]]<0),-((OperatingExpenses[[#This Row],[Período actual]]/OperatingExpenses[[#This Row],[Período anterior]])-1),(OperatingExpenses[[#This Row],[Período actual]]/OperatingExpenses[[#This Row],[Período anterior]])-1))),\"-\")","v":{"v":0,"d":"0.00%"}},{"$f":"IFERROR(IF(OperatingExpenses[[#This Row],[Presupuesto]]=OperatingExpenses[[#This Row],[Período actual]],0,IF(OperatingExpenses[[#This Row],[Período actual]]>OperatingExpenses[[#This Row],[Presupuesto]],ABS((OperatingExpenses[[#This Row],[Período actual]]/OperatingExpenses[[#This Row],[Presupuesto]])-1),IF(AND(OperatingExpenses[[#This Row],[Período actual]]<OperatingExpenses[[#This Row],[Presupuesto]],OperatingExpenses[[#This Row],[Presupuesto]]<0),-((OperatingExpenses[[#This Row],[Período actual]]/OperatingExpenses[[#This Row],[Presupuesto]])-1),(OperatingExpenses[[#This Row],[Período actual]]/OperatingExpenses[[#This Row],[Presupuesto]])-1))),\"-\")","v":{"v":0,"d":"0.00%"}}]
[null,"Generales y administrativos","Otros gastos (especificar)",{"$nulls":3},{"$f":"IFERROR(IF(Ingresos_Por_Ventas=0,\"-\",OperatingExpenses[[#This Row],[Período actual]]/Ingresos_Por_Ventas),\"-\")","v":"-"},{"$f":"IFERROR(IF(OperatingExpenses[[#This Row],[Período anterior]]=OperatingExpenses[[#This Row],[Período actual]],0,IF(OperatingExpenses[[#This Row],[Período actual]]>OperatingExpenses[[#This Row],[Período anterior]],ABS((OperatingExpenses[[#This Row],[Período actual]]/OperatingExpenses[[#This Row],[Período anterior]])-1),IF(AND(OperatingExpenses[[#This Row],[Período actual]]<OperatingExpenses[[#This Row],[Período anterior]],OperatingExpenses[[#This Row],[Período anterior]]<0),-((OperatingExpenses[[#This Row],[Período actual]]/OperatingExpenses[[#This Row],[Período anterior]])-1),(OperatingExpenses[[#This Row],[Período actual]]/OperatingExpenses[[#This Row],[Período anterior]])-1))),\"-\")","v":{"v":0,"d":"0.00%"}},{"$f":"IFERROR(IF(OperatingExpenses[[#This Row],[Presupuesto]]=OperatingExpenses[[#This Row],[Período actual]],0,IF(OperatingExpenses[[#This Row],[Período actual]]>OperatingExpenses[[#This Row],[Presupuesto]],ABS((OperatingExpenses[[#This Row],[Período actual]]/OperatingExpenses[[#This Row],[Presupuesto]])-1),IF(AND(OperatingExpenses[[#This Row],[Período actual]]<OperatingExpenses[[#This Row],[Presupuesto]],OperatingExpenses[[#This Row],[Presupuesto]]<0),-((OperatingExpenses[[#This Row],[Período actual]]/OperatingExpenses[[#This Row],[Presupuesto]])-1),(OperatingExpenses[[#This Row],[Período actual]]/OperatingExpenses[[#This Row],[Presupuesto]])-1))),\"-\")","v":{"v":0,"d":"0.00%"}}]
[null,"Total de gastos operativos",null,{"$f":"SUBTOTAL(109,OperatingExpenses[Período anterior])","v":0},{"$f":"SUBTOTAL(109,OperatingExpenses[Presupuesto])","v":0},{"$f":"SUBTOTAL(109,OperatingExpenses[Período actual])","v":0},{"$f":"SUBTOTAL(109,OperatingExpenses[Período actual como porcentaje de ventas])","v":{"v":0,"d":"0.00%"}},{"$f":"SUBTOTAL(109,OperatingExpenses[Porcentaje de cambio desde el período anterior])","v":{"v":0,"d":"0.00%"}},{"$f":"SUBTOTAL(109,OperatingExpenses[Porcentaje de cambio desde presupuesto])","v":{"v":0,"d":"0.00%"}}]

{"sheet":"Impuestos","index":4,"n_rows":10,"n_cols":9,"rows_kept":10,"merged":[[0,7,2,8]]}
[null,{"$f":"Título_del_libro","v":"Balance de pérdidas y ganancias"}]
[null,{"$f":"Nombre_de_la_compañía","v":"Nombre de la compañía"},"Expresado en millares"]
[null,"Impuestos",{"$f":"IFERROR(Impuestos[[#Totals],[Período actual]],\"-\")","v":0}]
[null,"Tipo","Descripción","Período anterior","Presupuesto","Período actual","Período actual como porcentaje de ventas","Porcentaje de cambio desde el período anterior","Porcentaje de cambio desde presupuesto"]
[null,"Impuestos","Impuestos sobre la renta",{"$nulls":3},{"$f":"IFERROR(IF(Ingresos_Por_Ventas=0,\"-\",Impuestos[[#This Row],[Período actual]]/Ingresos_Por_Ventas),\"-\")","v":"-"},{"$f":"IFERROR(IF(Impuestos[[#This Row],[Período anterior]]=Impuestos[[#This Row],[Período actual]],0,IF(Impuestos[[#This Row],[Período actual]]>Impuestos[[#This Row],[Período anterior]],ABS((Impuestos[[#This Row],[Período actual]]/Impuestos[[#This Row],[Período anterior]])-1),IF(AND(Impuestos[[#This Row],[Período actual]]<Impuestos[[#This Row],[Período anterior]],Impuestos[[#This Row],[Período anterior]]<0),-((Impuestos[[#This Row],[Período actual]]/Impuestos[[#This Row],[Período anterior]])-1),(Impuestos[[#This Row],[Período actual]]/Impuestos[[#This Row],[Período anterior]])-1))),\"-\")","v":{"v":0,"d":"0.00%"}},{"$f":"IFERROR(IF(Impuestos[[#This Row],[Presupuesto]]=Impuestos[[#This Row],[Período actual]],0,IF(Impuestos[[#This Row],[Período actual]]>Impuestos[[#This Row],[Presupuesto]],ABS((Impuestos[[#This Row],[Período actual]]/Impuestos[[#This Row],[Presupuesto]])-1),IF(AND(Impuestos[[#This Row],[Período actual]]<Impuestos[[#This Row],[Presupuesto]],Impuestos[[#This Row],[Presupuesto]]<0),-((Impuestos[[#This Row],[Período actual]]/Impuestos[[#This Row],[Presupuesto]])-1),(Impuestos[[#This Row],[Período actual]]/Impuestos[[#This Row],[Presupuesto]])-1))),\"-\")","v":{"v":0,"d":"0.00%"}}]
[null,"Impuestos","Impuestos sobre nóminas",{"$nulls":3},{"$f":"IFERROR(IF(Ingresos_Por_Ventas=0,\"-\",Impuestos[[#This Row],[Período actual]]/Ingresos_Por_Ventas),\"-\")","v":"-"},{"$f":"IFERROR(IF(Impuestos[[#This Row],[Período anterior]]=Impuestos[[#This Row],[Período actual]],0,IF(Impuestos[[#This Row],[Período actual]]>Impuestos[[#This Row],[Período anterior]],ABS((Impuestos[[#This Row],[Período actual]]/Impuestos[[#This Row],[Período anterior]])-1),IF(AND(Impuestos[[#This Row],[Período actual]]<Impuestos[[#This Row],[Período anterior]],Impuestos[[#This Row],[Período anterior]]<0),-((Impuestos[[#This Row],[Período actual]]/Impuestos[[#This Row],[Período anterior]])-1),(Impuestos[[#This Row],[Período actual]]/Impuestos[[#This Row],[Período anterior]])-1))),\"-\")","v":{"v":0,"d":"0.00%"}},{"$f":"IFERROR(IF(Impuestos[[#This Row],[Presupuesto]]=Impuestos[[#This Row],[Período actual]],0,IF(Impuestos[[#This Row],[Período actual]]>Impuestos[[#This Row],[Presupuesto]],ABS((Impuestos[[#This Row],[Período actual]]/Impuestos[[#This Row],[Presupuesto]])-1),IF(AND(Impuestos[[#This Row],[Período actual]]<Impuestos[[#This Row],[Presupuesto]],Impuestos[[#This Row],[Presupuesto]]<0),-((Impuestos[[#This Row],[Período actual]]/Impuestos[[#This Row],[Presupuesto]])-1),(Impuestos[[#This Row],[Período actual]]/Impuestos[[#This Row],[Presupuesto]])-1))),\"-\")","v":{"v":0,"d":"0.00%"}}]
[null,"Impuestos","Impuestos sobre bienes inmuebles",{"$nulls":3},{"$f":"IFERROR(IF(Ingresos_Por_Ventas=0,\"-\",Impuestos[[#This Row],[Período actual]]/Ingresos_Por_Ventas),\"-\")","v":"-"},{"$f":"IFERROR(IF(Impuestos[[#This Row],[Período anterior]]=Impuestos[[#This Row],[Período actual]],0,IF(Impuestos[[#This Row],[Período actual]]>Impuestos[[#This Row],[Período anterior]],ABS((Impuestos[[#This Row],[Período actual]]/Impuestos[[#This Row],[Período anterior]])-1),IF(AND(Impuestos[[#This Row],[Período actual]]<Impuestos[[#This Row],[Período anterior]],Impuestos[[#This Row],[Período anterior]]<0),-((Impuestos[[#This Row],[Período actual]]/Impuestos[[#This Row],[Período anterior]])-1),(Impuestos[[#This Row],[Período actual]]/Impuestos[[#This Row],[Período anterior]])-1))),\"-\")","v":{"v":0,"d":"0.00%"}},{"$f":"IFERROR(IF(Impuestos[[#This Row],[Presupuesto]]=Impuestos[[#This Row],[Período actual]],0,IF(Impuestos[[#This Row],[Período actual]]>Impuestos[[#This Row],[Presupuesto]],ABS((Impuestos[[#This Row],[Período actual]]/Impuestos[[#This Row],[Presupuesto]])-1),IF(AND(Impuestos[[#This Row],[Período actual]]<Impuestos[[#This Row],[Presupuesto]],Impuestos[[#This Row],[Presupuesto]]<0),-((Impuestos[[#This Row],[Período actual]]/Impuestos[[#This Row],[Presupuesto]])-1),(Impuestos[[#This Row],[Período actual]]/Impuestos[[#This Row],[Presupuesto]])-1))),\"-\")","v":{"v":0,"d":"0.00%"}}]
[null,"Impuestos","Otros impuestos (especifica)",{"$nulls":3},{"$f":"IFERROR(IF(Ingresos_Por_Ventas=0,\"-\",Impuestos[[#This Row],[Período actual]]/Ingresos_Por_Ventas),\"-\")","v":"-"},{"$f":"IFERROR(IF(Impuestos[[#This Row],[Período anterior]]=Impuestos[[#This Row],[Período actual]],0,IF(Impuestos[[#This Row],[Período actual]]>Impuestos[[#This Row],[Período anterior]],ABS((Impuestos[[#This Row],[Período actual]]/Impuestos[[#This Row],[Período anterior]])-1),IF(AND(Impuestos[[#This Row],[Período actual]]<Impuestos[[#This Row],[Período anterior]],Impuestos[[#This Row],[Período anterior]]<0),-((Impuestos[[#This Row],[Período actual]]/Impuestos[[#This Row],[Período anterior]])-1),(Impuestos[[#This Row],[Período actual]]/Impuestos[[#This Row],[Período anterior]])-1))),\"-\")","v":{"v":0,"d":"0.00%"}},{"$f":"IFERROR(IF(Impuestos[[#This Row],[Presupuesto]]=Impuestos[[#This Row],[Período actual]],0,IF(Impuestos[[#This Row],[Período actual]]>Impuestos[[#This Row],[Presupuesto]],ABS((Impuestos[[#This Row],[Período actual]]/Impuestos[[#This Row],[Presupuesto]])-1),IF(AND(Impuestos[[#This Row],[Período actual]]<Impuestos[[#This Row],[Presupuesto]],Impuestos[[#This Row],[Presupuesto]]<0),-((Impuestos[[#This Row],[Período actual]]/Impuestos[[#This Row],[Presupuesto]])-1),(Impuestos[[#This Row],[Período actual]]/Impuestos[[#This Row],[Presupuesto]])-1))),\"-\")","v":{"v":0,"d":"0.00%"}}]
[null,"Impuestos","Otros impuestos (especifica)",{"$nulls":3},{"$f":"IFERROR(IF(Ingresos_Por_Ventas=0,\"-\",Impuestos[[#This Row],[Período actual]]/Ingresos_Por_Ventas),\"-\")","v":"-"},{"$f":"IFERROR(IF(Impuestos[[#This Row],[Período anterior]]=Impuestos[[#This Row],[Período actual]],0,IF(Impuestos[[#This Row],[Período actual]]>Impuestos[[#This Row],[Período anterior]],ABS((Impuestos[[#This Row],[Período actual]]/Impuestos[[#This Row],[Período anterior]])-1),IF(AND(Impuestos[[#This Row],[Período actual]]<Impuestos[[#This Row],[Período anterior]],Impuestos[[#This Row],[Período anterior]]<0),-((Impuestos[[#This Row],[Período actual]]/Impuestos[[#This Row],[Período anterior]])-1),(Impuestos[[#This Row],[Período actual]]/Impuestos[[#This Row],[Período anterior]])-1))),\"-\")","v":{"v":0,"d":"0.00%"}},{"$f":"IFERROR(IF(Impuestos[[#This Row],[Presupuesto]]=Impuestos[[#This Row],[Período actual]],0,IF(Impuestos[[#This Row],[Período actual]]>Impuestos[[#This Row],[Presupuesto]],ABS((Impuestos[[#This Row],[Período actual]]/Impuestos[[#This Row],[Presupuesto]])-1),IF(AND(Impuestos[[#This Row],[Período actual]]<Impuestos[[#This Row],[Presupuesto]],Impuestos[[#This Row],[Presupuesto]]<0),-((Impuestos[[#This Row],[Período actual]]/Impuestos[[#This Row],[Presupuesto]])-1),(Impuestos[[#This Row],[Período actual]]/Impuestos[[#This Row],[Presupuesto]])-1))),\"-\")","v":{"v":0,"d":"0.00%"}}]
[null,"Total de retención",null,{"$f":"SUBTOTAL(109,Impuestos[Período anterior])","v":0},{"$f":"SUBTOTAL(109,Impuestos[Presupuesto])","v":0},{"$f":"SUBTOTAL(109,Impuestos[Período actual])","v":0},{"$f":"IFERROR(SUBTOTAL(109,Impuestos[Período actual como porcentaje de ventas]),\"-\")","v":{"v":0,"d":"0.00%"}},{"$f":"SUBTOTAL(109,Impuestos[Porcentaje de cambio desde el período anterior])","v":{"v":0,"d":"0.00%"}},{"$f":"SUBTOTAL(109,Impuestos[Porcentaje de cambio desde presupuesto])","v":{"v":0,"d":"0.00%"}}]

{"sheet":"Categorías","index":5,"n_rows":8,"n_cols":2,"rows_kept":8}
[null,"Categorías"]
[null,"Ingresos por ventas"]
[null,"Costo de ventas"]
[null,"Ingresos"]
[null,"Ventas y marketing"]
[null,"Investigación y desarrollo"]
[null,"Generales y administrativos"]
[null,"Impuestos"]